bitfinex-derivatives/quotes_BTCF0:USTF0_20250517
["timestamp","ask_amount","ask_price","bid_price","bid_amount"]
[1747464128322,0.4395398,103480.0,103470.0,0.93481767]
[1747464129120,0.6195398,103480.0,103470.0,0.93481767]
[1747464129623,0.6205398,103480.0,103470.0,0.93481767]
[1747464130313,0.5900398,103480.0,103470.0,0.94467188]
[1747464130511,0.5930398,103480.0,103470.0,0.94467188]
[1747464131326,0.5599398,103480.0,103470.0,0.94467188]
[1747464131726,0.5899398,103480.0,103470.0,0.95882795]
[1747464131924,0.49945086,103480.0,103470.0,0.95882795]
[1747464134931,0.49945086,103480.0,103470.0,0.88031868]
[1747464135137,0.49945086,103480.0,103470.0,0.95882795]
[1747464135428,0.53275086,103480.0,103470.0,0.95882795]
[1747464135829,0.53275086,103480.0,103470.0,1.02017996]
[1747464136128,0.53275086,103480.0,103470.0,1.08686668]
[1747464141440,0.53275086,103480.0,103470.0,0.95882795]
[1747464141628,0.53275086,103480.0,103470.0,1.00793515]
[1747464143335,0.6232398,103480.0,103470.0,1.05304752]
[1747464145034,0.5899398,103480.0,103470.0,1.05304752]
[1747464146038,0.5899398,103480.0,103470.0,0.69224752]
[1747464146336,0.5899398,103480.0,103470.0,1.05304752]
[1747464147938,0.5899398,103480.0,103470.0,0.69224752]
[1747464148235,0.5899398,103480.0,103470.0,1.05304752]
[1747464148831,0.5899398,103480.0,103470.0,1.06529233]
[1747464149732,0.5899398,103480.0,103470.0,0.98666306]
[1747464149932,0.5899398,103480.0,103470.0,1.06517233]
[1747464150134,0.6230398,103480.0,103470.0,1.06517233]
[1747464153233,0.6230398,103480.0,103470.0,0.98662306]
[1747464153537,0.6230398,103480.0,103470.0,0.92527105]
[1747464154239,0.5899398,103480.0,103470.0,0.92527105]
[1747464154541,0.5599398,103480.0,103470.0,1.00378032]
[1747464155638,0.5922398,103480.0,103470.0,1.00378032]
[1747464155834,0.5599398,103480.0,103470.0,1.00378032]
[1747464156030,0.5290398,103480.0,103470.0,1.00378032]
[1747464157135,0.3490398,103480.0,103470.0,1.00378032]
[1747464157841,0.3490398,103480.0,103470.0,1.07074765]
[1747464159232,0.28871384,103480.0,103470.0,1.07074765]
[1747464160232,0.46871384,103480.0,103470.0,1.07074765]
[1747464160544,0.46871384,103480.0,103470.0,0.70994765]
[1747464160735,0.46871384,103480.0,103470.0,1.07074765]
[1747464161738,0.46871384,103480.0,103470.0,0.70994765]
[1747464161944,0.46871384,103480.0,103470.0,1.00378032]
[1747464163244,0.46871384,103480.0,103470.0,0.64298032]
[1747464163439,0.46871384,103480.0,103470.0,1.00378032]
[1747464165343,0.27548894,103480.0,103470.0,1.00378032]
[1747464166642,0.46869904,103480.0,103470.0,1.00378032]
[1747464167843,0.27548894,103480.0,103470.0,1.00378032]
[1747464168039,0.46869904,103480.0,103470.0,1.00378032]
[1747464169743,0.27548894,103480.0,103470.0,1.00378032]
[1747464169947,0.27548894,103480.0,103470.0,1.10378032]
[1747464170136,0.09548894,103480.0,103470.0,1.10378032]
[1747464171245,0.46869904,103480.0,103470.0,1.10378032]
[1747464173444,0.46869904,103480.0,103470.0,1.31110032]
[1747464174350,0.50139904,103480.0,103470.0,1.31110032]
[1747464177345,0.53469904,103480.0,103470.0,1.31110032]
[1747464179852,0.53469904,103480.0,103470.0,1.35032503]
[1747464180451,0.53469904,103480.0,103470.0,1.31110032]
[1747464180746,0.53469904,103480.0,103470.0,1.10378032]
[1747464181053,0.53469904,103480.0,103470.0,1.31098032]
[1747464182052,0.53469904,103480.0,103470.0,0.95018032]
[1747464182249,0.53469904,103480.0,103470.0,1.31098032]
[1747464186855,0.53469904,103480.0,103470.0,1.10378032]
[1747464187052,0.53469904,103480.0,103470.0,1.31094032]
[1747464188555,0.53469904,103480.0,103470.0,1.35016584]
[1747464189656,0.53469904,103480.0,103470.0,1.14300584]
[1747464189858,0.53469904,103480.0,103470.0,1.35012584]
[1747464190155,0.35469904,103480.0,103470.0,1.35012584]
[1747464191156,0.16148894,103480.0,103470.0,1.35012584]
[1747464191356,0.35469984,103480.0,103470.0,1.35012584]
[1747464191545,0.35469984,103480.0,103470.0,1.31090032]
[1747464191858,0.35469984,103480.0,103470.0,0.95010032]
[1747464192052,0.35469984,103480.0,103470.0,0.87159105]
[1747464192357,0.35469984,103480.0,103470.0,1.31090032]
[1747464193453,0.35469984,103480.0,103470.0,1.01708981]
[1747464193757,0.35469984,103480.0,103470.0,1.37788981]
[1747464194161,0.35469984,103480.0,103470.0,1.01708981]
[1747464194467,0.35469984,103480.0,103470.0,1.37788981]
[1747464194854,0.35469984,103480.0,103470.0,1.01708981]
[1747464195053,0.35469984,103480.0,103470.0,1.37788981]
[1747464195960,0.35469984,103480.0,103470.0,1.01708981]
[1747464196561,0.35469984,103480.0,103470.0,1.37784981]
[1747464196862,0.35469984,103480.0,103470.0,1.01704981]
[1747464197061,0.35469984,103480.0,103470.0,1.37784981]
[1747464197452,0.35469984,103480.0,103470.0,1.37231273]
[1747464200659,0.09548894,103480.0,103470.0,1.37231273]
[1747464201360,0.1558804,103480.0,103470.0,1.43247945]
[1747464204361,0.1558804,103480.0,103470.0,2.52819945]
[1747464206362,0.1558804,103480.0,103470.0,2.46674704]
[1747464208457,0.1558804,103480.0,103470.0,2.50594404]
[1747464210956,0.1558804,103480.0,103470.0,2.64625066]
[1747464211568,0.1558804,103480.0,103470.0,3.00705066]
[1747464212665,0.1558804,103480.0,103470.0,2.96785366]
[1747464214566,0.1558804,103480.0,103470.0,2.76077366]
[1747464214765,0.1558804,103480.0,103470.0,2.96773366]
[1747464215365,0.06539146,103480.0,103470.0,2.96180756]
[1747464216264,0.12278894,103490.0,103480.0,0.1932109]
[1747464216459,0.15388894,103490.0,103480.0,0.90612944]
[1747464216767,0.12278894,103490.0,103480.0,0.90612944]
[1747464216974,0.12278894,103490.0,103480.0,0.94530077]
[1747464216975,0.09048894,103490.0,103480.0,0.94530077]
[1747464217468,0.09048894,103490.0,103480.0,0.90612944]
[1747464217966,0.09048894,103490.0,103480.0,0.82762017]
[1747464218468,0.09348894,103490.0,103480.0,0.91327916]
[1747464219168,0.27348894,103490.0,103480.0,0.91327916]
[1747464219371,0.27348894,103490.0,103480.0,0.87275005]
[1747464221270,0.183,103490.0,103480.0,0.87275005]
[1747464221473,0.2156,103490.0,103480.0,0.87275005]
[1747464222870,0.2156,103490.0,103480.0,0.92187609]
[1747464223171,0.2156,103490.0,103480.0,1.04187609]
[1747464224274,0.2156,103490.0,103480.0,0.68107609]
[1747464224480,0.247,103490.0,103480.0,1.04187609]
[1747464225273,0.247,103490.0,103480.0,0.68107609]
[1747464225477,0.247,103490.0,103480.0,1.04187609]
[1747464225768,0.25244216,103490.0,103480.0,0.68107609]
[1747464225973,0.25244216,103490.0,103480.0,1.04187609]
[1747464226873,0.247,103490.0,103480.0,1.24871609]
[1747464227775,0.247,103490.0,103480.0,1.19959005]
[1747464229869,0.25244216,103490.0,103480.0,1.19959005]
[1747464232281,0.22104216,103490.0,103480.0,1.19959005]
[1747464233177,0.25324216,103490.0,103480.0,1.19959005]
[1747464233781,0.25324216,103490.0,103480.0,0.83879005]
[1747464234185,0.25324216,103490.0,103480.0,1.19959005]
[1747464236680,0.22104216,103490.0,103480.0,1.19959005]
[1747464236886,0.22104216,103490.0,103480.0,1.40639005]
[1747464237271,0.18844216,103490.0,103480.0,1.40639005]
[1747464237771,0.18844216,103490.0,103480.0,1.48489932]
[1747464238781,0.18844216,103490.0,103480.0,1.61281738]
[1747464238977,0.183,103490.0,103480.0,1.61281738]
[1747464239871,0.183,103490.0,103480.0,1.25201738]
[1747464240072,0.183,103490.0,103480.0,1.61281738]
[1747464240383,0.183,103490.0,103480.0,1.53430811]
[1747464240884,0.2142,103490.0,103480.0,1.53430811]
[1747464241785,0.2142,103490.0,103480.0,1.61281738]
[1747464243386,0.2142,103490.0,103480.0,1.6729841]
[1747464244382,0.2142,103490.0,103480.0,1.54506604]
[1747464246596,0.36506412,103490.0,103480.0,1.54506604]
[1747464246784,0.36506412,103490.0,103480.0,1.18426604]
[1747464247091,0.36506412,103490.0,103480.0,1.54506604]
[1747464247789,0.36506412,103490.0,103480.0,1.54498604]
[1747464248197,0.37050628,103490.0,103480.0,1.54498604]
[1747464251397,0.37050628,103490.0,103480.0,1.22338118]
[1747464251590,0.37050628,103490.0,103480.0,1.58418118]
[1747464252188,0.36506412,103490.0,103480.0,1.58418118]
[1747464252390,0.36506412,103490.0,103480.0,1.54498604]
[1747464254092,0.36506412,103490.0,103480.0,1.18418604]
[1747464254302,0.36506412,103490.0,103480.0,1.54498604]
[1747464256390,0.36506412,103490.0,103480.0,1.24559359]
[1747464256700,0.36506412,103490.0,103480.0,1.60639359]
[1747464258598,0.36506412,103490.0,103480.0,2.70195359]
[1747464258911,0.36506412,103490.0,103480.0,2.54493505]
[1747464259091,0.36506412,103490.0,103480.0,2.70195359]
[1747464259699,0.36506412,103490.0,103480.0,2.62332432]
[1747464261104,0.36506412,103490.0,103480.0,2.6625272]
[1747464261302,0.37050628,103490.0,103480.0,2.6625272]
[1747464263806,0.37050628,103490.0,103480.0,2.62332432]
[1747464264302,0.36506412,103490.0,103480.0,2.62332432]
[1747464264501,0.36506412,103490.0,103480.0,2.66252722]
[1747464264906,0.36506412,103490.0,103480.0,2.30172722]
[1747464265205,0.36506412,103490.0,103480.0,2.66252722]
[1747464265405,0.37050628,103490.0,103480.0,2.66252722]
[1747464265807,0.37050628,103490.0,103480.0,2.62332432]
[1747464267008,0.37050628,103490.0,103480.0,2.68990075]
[1747464267503,0.37050628,103490.0,103480.0,2.72910465]
[1747464268304,0.37050628,103490.0,103480.0,2.36830465]
[1747464268512,0.37050628,103490.0,103480.0,2.72910465]
[1747464268709,0.33930628,103490.0,103480.0,2.80761392]
[1747464269411,0.33386412,103490.0,103480.0,2.80761392]
[1747464271612,0.33386412,103490.0,103480.0,2.44681392]
[1747464271816,0.33386412,103490.0,103480.0,3.16841392]
[1747464274012,0.33386412,103490.0,103480.0,3.08990465]
[1747464274406,0.33386412,103490.0,103480.0,3.16841392]
[1747464275616,0.33386412,103490.0,103480.0,3.12921002]
[1747464277021,0.24337518,103490.0,103480.0,3.12921002]
[1747464277407,0.24337518,103490.0,103480.0,2.97219148]
[1747464277606,0.24337518,103490.0,103480.0,3.05070075]
[1747464278519,0.24881734,103490.0,103480.0,3.05070075]
[1747464278818,0.24881734,103490.0,103480.0,3.12921002]
[1747464279622,0.24337518,103490.0,103480.0,3.12921002]
[1747464280914,0.24337518,103490.0,103480.0,3.16840329]
[1747464281325,0.24337518,103490.0,103480.0,3.08989402]
[1747464282212,0.24337518,103490.0,103480.0,2.98989402]
[1747464282523,0.33386412,103490.0,103480.0,2.98989402]
[1747464284020,0.33386412,103490.0,103480.0,2.78333402]
[1747464284225,0.36466412,103490.0,103480.0,2.98969402]
[1747464284725,0.40320628,103490.0,103480.0,2.98969402]
[1747464285220,0.40320628,103490.0,103480.0,2.57645402]
[1747464285425,0.40320628,103490.0,103480.0,2.98921402]
[1747464286229,0.37010628,103490.0,103480.0,2.98921402]
[1747464286426,0.37010628,103490.0,103480.0,2.95002075]
[1747464287223,0.37010628,103490.0,103480.0,3.05002075]
[1747464290327,0.37010628,103490.0,103480.0,2.68922075]
[1747464294532,0.37010628,103490.0,103480.0,2.72841913]
[1747464295322,0.37010628,103490.0,103480.0,2.36761913]
[1747464295517,0.37010628,103490.0,103480.0,2.72841913]
[1747464295718,0.37010628,103490.0,103480.0,2.36761913]
[1747464296025,0.37010628,103490.0,103480.0,2.72841913]
[1747464302836,0.37010628,103490.0,103480.0,2.52205913]
[1747464303026,0.40340628,103490.0,103480.0,2.72825913]
[1747464305935,0.37010628,103490.0,103480.0,2.72825913]
[1747464308539,0.33930628,103490.0,103480.0,2.72825913]
[1747464311244,0.33930628,103490.0,103480.0,2.8067684]
[1747464311946,0.33386412,103490.0,103480.0,2.8067684]
[1747464313054,0.33930628,103490.0,103480.0,2.8067684]
[1747464313347,0.33930628,103490.0,103480.0,3.1675684]
[1747464316149,0.33386412,103490.0,103480.0,3.12837002]
[1747464317650,0.097819,103500.0,103490.0,0.1931922]
[1747464317950,0.097819,103500.0,103490.0,1.04741074]
[1747464318155,0.277819,103500.0,103490.0,1.04741074]
[1747464318451,0.277819,103500.0,103490.0,0.96890147]
[1747464319648,0.277819,103500.0,103490.0,1.02906819]
[1747464321255,0.097819,103500.0,103490.0,1.02906819]
[1747464322267,0.277819,103500.0,103490.0,1.02906819]
[1747464323255,0.097819,103500.0,103490.0,1.02906819]
[1747464324466,0.14303074,103500.0,103490.0,1.02906819]
[1747464327058,0.32303074,103500.0,103490.0,1.02906819]
[1747464327267,0.3284729,103500.0,103490.0,1.02906819]
[1747464327667,0.3284729,103500.0,103490.0,0.95055892]
[1747464327856,0.3284729,103500.0,103490.0,1.23506819]
[1747464328965,0.3284729,103500.0,103490.0,1.02906819]
[1747464329164,0.3284729,103500.0,103490.0,1.23502819]
[1747464329964,0.3284729,103500.0,103490.0,1.59582819]
[1747464330152,0.3284729,103500.0,103490.0,1.64489747]
[1747464331265,0.32303074,103500.0,103490.0,1.64489747]
[1747464332266,0.3284729,103500.0,103490.0,1.64489747]
[1747464334460,0.3284729,103500.0,103490.0,1.59582819]
[1747464335262,0.3284729,103500.0,103490.0,0.87422819]
[1747464335567,0.3284729,103500.0,103490.0,1.59582819]
[1747464336268,0.3284729,103500.0,103490.0,1.38986819]
[1747464336463,0.3284729,103500.0,103490.0,1.59578819]
[1747464339268,0.3284729,103500.0,103490.0,1.64485747]
[1747464341258,0.3284729,103500.0,103490.0,1.72336674]
[1747464341563,0.06934216,103510.0,103500.0,0.53871524]
[1747464341763,0.06934216,103510.0,103500.0,1.35721378]
[1747464341966,0.06934216,103510.0,103500.0,1.27870451]
[1747464342168,0.24934216,103510.0,103500.0,1.27870451]
[1747464342470,0.2439,103510.0,103500.0,1.27870451]
[1747464344075,0.2439,103510.0,103500.0,1.63950451]
[1747464344471,0.2439,103510.0,103500.0,1.56099524]
[1747464344773,0.2439,103510.0,103500.0,1.63950451]
[1747464346073,0.2439,103510.0,103500.0,0.91790451]
[1747464346271,0.2439,103510.0,103500.0,1.63950451]
[1747464348772,0.2439,103510.0,103500.0,1.68857578]
[1747464349172,0.2439,103510.0,103500.0,1.89441578]
[1747464349473,0.2439,103510.0,103500.0,1.17281578]
[1747464349664,0.24934216,103510.0,103500.0,1.53361578]
[1747464349866,0.24934216,103510.0,103500.0,1.5937825]
[1747464352375,0.24934216,103510.0,103500.0,2.6891425]
[1747464353075,0.30967566,103510.0,103500.0,2.6891425]
[1747464353776,0.30967566,103510.0,103500.0,2.76765177]
[1747464354978,0.30967566,103510.0,103500.0,2.6891425]
[1747464357586,0.30967566,103510.0,103500.0,2.61063323]
[1747464357776,0.30967566,103510.0,103500.0,2.6891425]
[1747464359383,0.30967566,103510.0,103500.0,3.0499425]
[1747464359878,0.30967566,103510.0,103500.0,2.3283425]
[1747464360085,0.30967566,103510.0,103500.0,3.0499425]
[1747464362786,0.30967566,103510.0,103500.0,3.00087123]
[1747464363681,0.30967566,103510.0,103500.0,2.27927123]
[1747464363883,0.30967566,103510.0,103500.0,3.00087123]
[1747464365284,0.30967566,103510.0,103500.0,2.27927123]
[1747464365588,0.30967566,103510.0,103500.0,3.00087123]
[1747464366189,0.30967566,103510.0,103500.0,2.92236196]
[1747464366380,0.30967566,103510.0,103500.0,3.00087123]
[1747464367081,0.30967566,103510.0,103500.0,2.64007123]
[1747464367287,0.30967566,103510.0,103500.0,3.00075123]
[1747464368179,0.30967566,103510.0,103500.0,2.92224196]
[1747464368485,0.30967566,103510.0,103500.0,3.00075123]
[1747464373393,0.30967566,103510.0,103500.0,2.63995123]
[1747464373688,0.40005955,103510.0,103500.0,2.63995123]
[1747464374096,0.36855955,103510.0,103500.0,2.63995123]
[1747464375183,0.18855955,103510.0,103500.0,2.63995123]
[1747464375590,0.18855955,103510.0,103500.0,2.27915123]
[1747464375791,0.18855955,103510.0,103500.0,3.00075123]
[1747464376089,0.18311739,103510.0,103500.0,3.00075123]
[1747464376593,0.18311739,103510.0,103500.0,2.27915123]
[1747464377093,0.18311739,103510.0,103500.0,3.00075123]
[1747464379382,0.18311739,103510.0,103500.0,2.27915123]
[1747464379585,0.18311739,103510.0,103500.0,3.00075123]
[1747464379883,0.18311739,103510.0,103500.0,2.27915123]
[1747464380080,0.18311739,103510.0,103500.0,3.00075123]
[1747464380293,0.36311739,103510.0,103500.0,3.00075123]
[1747464380494,0.36311739,103510.0,103500.0,2.63995123]
[1747464382596,0.36311739,103510.0,103500.0,2.68503706]
[1747464383097,0.36311739,103510.0,103500.0,2.83503706]
[1747464383298,0.36311739,103510.0,103500.0,2.75652779]
[1747464383597,0.36311739,103510.0,103500.0,2.83487706]
[1747464383789,0.36311739,103510.0,103500.0,2.42351706]
[1747464384291,0.18311739,103510.0,103500.0,2.83487706]
[1747464385092,0.36311739,103510.0,103500.0,2.83487706]
[1747464388098,0.18311739,103510.0,103500.0,2.83487706]
[1747464389500,0.15071739,103510.0,103500.0,2.83487706]
[1747464389891,0.15071739,103510.0,103500.0,2.75636779]
[1747464390091,0.15071739,103510.0,103500.0,2.83487706]
[1747464391604,0.0603335,103510.0,103500.0,2.78971123]
[1747464396213,0.0603335,103510.0,103500.0,2.83885488]
[1747464401411,0.0603335,103510.0,103500.0,2.78971123]
[1747464401913,0.15071739,103510.0,103500.0,2.8348942]
[1747464407011,0.15071739,103510.0,103500.0,2.4740942]
[1747464407213,0.15071739,103510.0,103500.0,2.8348942]
[1747464411415,0.15071739,103510.0,103500.0,2.51331276]
[1747464411618,0.15071739,103510.0,103500.0,2.87411276]
[1747464412312,0.15071739,103510.0,103500.0,2.75638493]
[1747464412512,0.15071739,103510.0,103500.0,2.8347342]
[1747464413416,0.15071739,103510.0,103500.0,2.4739342]
[1747464413716,0.15071739,103510.0,103500.0,3.1955342]
[1747464413917,0.15071739,103510.0,103500.0,2.4739342]
[1747464414128,0.15071739,103510.0,103500.0,3.1955342]
[1747464414418,0.15071739,103510.0,103500.0,2.4739342]
[1747464414618,0.15071739,103510.0,103500.0,3.1955342]
[1747464415313,0.15071739,103510.0,103500.0,2.4739342]
[1747464415511,0.15071739,103510.0,103500.0,3.1955342]
[1747464416119,0.15071739,103510.0,103500.0,2.4739342]
[1747464416421,0.15071739,103510.0,103500.0,3.1955342]
[1747464421628,0.15071739,103510.0,103500.0,3.1954942]
[1747464422426,0.15071739,103510.0,103500.0,2.4738942]
[1747464422724,0.15071739,103510.0,103500.0,3.23472571]
[1747464422927,0.15071739,103510.0,103500.0,3.1954942]
[1747464424030,0.15071739,103510.0,103500.0,2.4738942]
[1747464424223,0.15071739,103510.0,103500.0,3.1954942]
[1747464426135,0.15071739,103510.0,103500.0,2.4738942]
[1747464426433,0.15071739,103510.0,103500.0,3.1954942]
[1747464428738,0.15071739,103510.0,103500.0,3.11698493]
[1747464429036,0.15071739,103510.0,103500.0,3.1952542]
[1747464429332,0.18211739,103510.0,103500.0,3.1952542]
[1747464429929,0.21401739,103510.0,103500.0,2.7843342]
[1747464430128,1.02648146,103510.0,103500.0,1.62835143]
[1747464430331,1.05808146,103510.0,103500.0,2.00713143]
[1747464430633,1.05808146,103510.0,103500.0,2.23200493]
[1747464430841,1.05808146,103510.0,103500.0,2.23184493]
[1747464431436,1.02807834,103510.0,103500.0,2.12649524]
[1747464431945,0.94956907,103510.0,103500.0,1.71577524]
[1747464432244,0.94956907,103510.0,103500.0,2.12649524]
[1747464434243,0.8288548,103510.0,103500.0,1.92113524]
[1747464434445,0.8288548,103510.0,103500.0,2.12649524]
[1747464435838,0.83429696,103510.0,103500.0,2.12649524]
[1747464436844,0.8288548,103510.0,103500.0,2.12649524]
[1747464437049,0.4680548,103510.0,103500.0,2.12649524]
[1747464437349,0.4680548,103510.0,103500.0,2.27427635]
[1747464438049,0.4680548,103510.0,103500.0,2.02873461]
[1747464438240,0.4680548,103510.0,103500.0,1.98062534]
[1747464441548,0.4680548,103510.0,103500.0,2.05913461]
[1747464442250,0.55842841,103510.0,103500.0,2.05913461]
[1747464448159,0.52682841,103510.0,103500.0,2.05913461]
[1747464448556,0.46352841,103510.0,103500.0,2.49844388]
[1747464449349,0.46352841,103510.0,103500.0,2.41993461]
[1747464452855,0.46352841,103510.0,103500.0,2.07142523]
[1747464453063,0.46352841,103510.0,103500.0,2.43222523]
[1747464456558,0.46352841,103510.0,103500.0,2.07142523]
[1747464457065,0.46352841,103510.0,103500.0,2.43222523]
[1747464457265,0.46352841,103510.0,103500.0,2.38306277]
[1747464459966,0.46352841,103510.0,103500.0,2.02226277]
[1747464460266,0.46352841,103510.0,103500.0,2.38306277]
[1747464460455,0.46352841,103510.0,103500.0,2.02226277]
[1747464460656,0.46352841,103510.0,103500.0,2.38306277]
[1747464461767,0.46352841,103510.0,103500.0,2.43222523]
[1747464462972,0.3731548,103510.0,103500.0,2.43222523]
[1747464463470,0.3731548,103510.0,103500.0,2.5107345]
[1747464464259,0.3731549,103510.0,103500.0,2.5107345]
[1747464464665,0.18,103510.0,103500.0,2.5107345]
[1747464466173,0.46071937,103520.0,103510.0,0.1931549]
[1747464466380,0.49281937,103520.0,103510.0,0.73036417]
[1747464467082,0.67281937,103520.0,103510.0,0.73036417]
[1747464467565,0.70371937,103520.0,103510.0,0.73036417]
[1747464467874,0.70371937,103520.0,103510.0,0.36956417]
[1747464468065,0.70371937,103520.0,103510.0,0.73036417]
[1747464469077,0.65543127,103520.0,103510.0,0.73036417]
[1747464469872,0.534717,103520.0,103510.0,0.73036417]
[1747464470974,0.534717,103520.0,103510.0,0.36956417]
[1747464471175,0.534717,103520.0,103510.0,0.40644708]
[1747464471376,0.534717,103520.0,103510.0,0.97248708]
[1747464471875,0.534717,103520.0,103510.0,0.61168708]
[1747464472073,0.534717,103520.0,103510.0,0.97248708]
[1747464473675,0.65543127,103520.0,103510.0,0.97248708]
[1747464474276,0.65543127,103520.0,103510.0,0.61168708]
[1747464474774,0.65543127,103520.0,103510.0,0.97248708]
[1747464477079,0.65543127,103520.0,103510.0,0.89397781]
[1747464478878,0.65543127,103520.0,103510.0,0.90625736]
[1747464482477,0.65543127,103520.0,103510.0,0.8570949]
[1747464488382,0.65543127,103520.0,103510.0,0.4962949]
[1747464488975,0.73394054,103520.0,103510.0,0.2910549]
[1747464489274,0.73394054,103520.0,103510.0,0.7014149]
[1747464489474,0.76644054,103520.0,103510.0,0.7014149]
[1747464491985,0.76644054,103520.0,103510.0,0.73830968]
[1747464494084,0.76644054,103520.0,103510.0,0.73818968]
[1747464497488,0.76644054,103520.0,103510.0,0.75045736]
[1747464501288,0.68793127,103520.0,103510.0,0.75045736]
[1747464501690,0.76644054,103520.0,103510.0,0.75045736]
[1747464502490,0.76644054,103520.0,103510.0,0.7012949]
[1747464511395,0.76644054,103520.0,103510.0,0.75045736]
[1747464512393,0.68793127,103520.0,103510.0,0.75045736]
[1747464512598,0.76644054,103520.0,103510.0,0.75045736]
[1747464516800,0.76644054,103520.0,103510.0,0.7382088]
[1747464519202,0.73394054,103520.0,103510.0,0.7382088]
[1747464524396,0.65543127,103520.0,103510.0,0.7382088]
[1747464526703,0.65543127,103520.0,103510.0,0.75045736]
[1747464539401,0.6951444,103520.0,103510.0,0.75045736]
[1747464542712,0.6951444,103520.0,103510.0,0.75009736]
[1747464545720,0.6951444,103520.0,103510.0,0.54517736]
[1747464545918,0.6951444,103520.0,103510.0,0.75005736]
[1747464546518,0.77365367,103520.0,103510.0,0.75005736]
[1747464547620,0.6951444,103520.0,103510.0,0.75005736]
[1747464547821,0.77365367,103520.0,103510.0,0.75005736]
[1747464549216,0.74275367,103520.0,103510.0,0.75005736]
[1747464549418,0.6642444,103520.0,103510.0,0.75005736]
[1747464549616,0.6321444,103520.0,103510.0,0.75005736]
[1747464551621,0.6321444,103520.0,103510.0,1.11085736]
[1747464552126,0.4521444,103520.0,103510.0,1.11085736]
[1747464553124,0.6321444,103520.0,103510.0,1.11085736]
[1747464554425,0.6321444,103520.0,103510.0,0.75005736]
[1747464555124,0.4521444,103520.0,103510.0,0.75005736]
[1747464555624,0.4821444,103520.0,103510.0,0.75005736]
[1747464556125,0.6321444,103520.0,103510.0,0.75005736]
[1747464557226,0.4521444,103520.0,103510.0,0.75005736]
[1747464558022,0.4521444,103520.0,103510.0,0.7008949]
[1747464560021,0.4833444,103520.0,103510.0,0.7008949]
[1747464560612,0.56185367,103520.0,103510.0,0.7008949]
[1747464561328,0.4833444,103520.0,103510.0,0.7008949]
[1747464562330,0.4833444,103520.0,103510.0,0.75005736]
[1747464568636,0.5142444,103520.0,103510.0,0.75005736]
[1747464569337,0.5142444,103520.0,103510.0,0.74993736]
[1747464570240,0.6942444,103520.0,103510.0,0.74993736]
[1747464572639,0.6321444,103520.0,103510.0,1.18924663]
[1747464572839,0.6321444,103520.0,103510.0,0.82844663]
[1747464573538,0.6321444,103520.0,103510.0,0.74993736]
[1747464575140,0.4521444,103520.0,103510.0,0.74993736]
[1747464577149,0.6321444,103520.0,103510.0,0.74993736]
[1747464579936,0.6627444,103520.0,103510.0,0.74993736]
[1747464582545,0.6627444,103520.0,103510.0,0.82844663]
[1747464584237,0.4827444,103520.0,103510.0,0.82844663]
[1747464584437,0.4827444,103520.0,103510.0,0.74993736]
[1747464585147,0.6627444,103520.0,103510.0,0.74993736]
[1747464585846,0.6930444,103520.0,103510.0,0.74993736]
[1747464586350,0.6930444,103520.0,103510.0,0.54517736]
[1747464586548,0.6930444,103520.0,103510.0,0.74985736]
[1747464590551,0.6930444,103520.0,103510.0,0.7006949]
[1747464592352,0.6627444,103520.0,103510.0,0.7006949]
[1747464592751,0.6954444,103520.0,103510.0,0.7006949]
[1747464596964,0.6954444,103520.0,103510.0,0.7006549]
[1747464601160,0.7268444,103520.0,103510.0,0.7006549]
[1747464601360,0.7268444,103520.0,103510.0,0.0979]
[1747464601667,1.16615367,103520.0,103510.0,0.44208]
[1747464602159,1.24466294,103520.0,103510.0,0.0328]
[1747464602362,0.1931552,103510.0,103500.0,1.55466135]
[1747464602563,0.72786447,103510.0,103500.0,1.52018135]
[1747464602857,0.72786447,103510.0,103500.0,1.96186135]
[1747464603161,0.8293552,103510.0,103500.0,1.99256135]
[1747464603955,0.4685552,103510.0,103500.0,1.99256135]
[1747464604151,0.8293552,103510.0,103500.0,1.99256135]
[1747464604354,0.9897826,103510.0,103500.0,1.99256135]
[1747464604563,0.6289826,103510.0,103500.0,1.99256135]
[1747464604766,0.9897826,103510.0,103500.0,1.98033654]
[1747464606061,0.9897826,103510.0,103500.0,1.77573654]
[1747464606268,0.9897826,103510.0,103500.0,1.98033654]
[1747464606562,0.9897826,103510.0,103500.0,0.25178274]
[1747464606563,1.06829187,103510.0,103500.0,0.25178274]
[1747464606874,1.06829187,103510.0,103500.0,0.62866274]
[1747464607068,1.06829187,103510.0,103500.0,0.28406274]
[1747464607256,1.06829187,103510.0,103500.0,0.45846274]
[1747464607257,1.07373403,103510.0,103500.0,0.45846274]
[1747464608258,1.06829187,103510.0,103500.0,0.45846274]
[1747464608459,1.06829187,103510.0,103500.0,0.49116274]
[1747464609162,1.07373403,103510.0,103500.0,0.49116274]
[1747464609361,1.07373403,103510.0,103500.0,0.45846274]
[1747464610169,1.07373403,103510.0,103500.0,0.04918274]
[1747464610463,0.95301976,103510.0,103500.0,0.45846274]
[1747464611161,0.9475776,103510.0,103500.0,0.45846274]
[1747464611362,1.69269887,103510.0,103500.0,0.04918274]
[1747464611972,0.1931741,103500.0,103490.0,0.2742577]
[1747464612153,0.98599264,103500.0,103490.0,0.2742577]
[1747464612469,0.98599264,103500.0,103490.0,0.0695377]
[1747464612668,0.90748337,103500.0,103490.0,0.0695377]
[1747464613363,0.9471965,103500.0,103490.0,0.0695377]
[1747464613554,1.02570577,103500.0,103490.0,0.0368377]
[1747464613969,0.9471965,103500.0,103490.0,0.0368377]
[1747464614161,0.9471965,103500.0,103490.0,0.0699377]
[1747464615672,0.9471965,103500.0,103490.0,0.0331]
[1747464615869,1.02570577,103500.0,103490.0,0.0331]
[1747464616271,1.38650577,103500.0,103490.0,0.0331]
[1747464616963,1.3079965,103500.0,103490.0,0.0331]
[1747464619472,1.38650577,103500.0,103490.0,0.0331]
[1747464620068,1.48312977,103500.0,103490.0,0.0331]
[1747464620673,0.1931915,103490.0,103480.0,0.40932]
[1747464620871,0.73764975,103490.0,103480.0,0.44142]
[1747464621071,0.91764975,103490.0,103480.0,0.44142]
[1747464621267,0.91764975,103490.0,103480.0,0.0321]
[1747464621468,0.9478139,103490.0,103480.0,0.0321]
[1747464622377,0.5870139,103490.0,103480.0,0.0321]
[1747464622578,0.9478139,103490.0,103480.0,0.0321]
[1747464622878,0.96213054,103490.0,103480.0,0.0321]
[1747464623382,0.96213054,103490.0,103480.0,0.0629]
[1747464623578,1.11254702,103490.0,103480.0,0.0629]
[1747464624578,1.11254702,103490.0,103480.0,0.0953]
[1747464628380,1.03403775,103490.0,103480.0,0.288511]
[1747464628583,1.11254702,103490.0,103480.0,0.288511]
[1747464629184,1.11254702,103490.0,103480.0,0.0953]
[1747464629482,1.11254702,103490.0,103480.0,0.288511]
[1747464634191,1.07984702,103490.0,103480.0,0.288511]
[1747464638486,0.71904702,103490.0,103480.0,0.288511]
[1747464638679,1.07984702,103490.0,103480.0,0.288511]
[1747464639391,1.00133775,103490.0,103480.0,0.288511]
[1747464639687,1.07984702,103490.0,103480.0,0.288511]
[1747464641884,1.07984702,103490.0,103480.0,0.15261021]
[1747464642090,1.07984702,103490.0,103480.0,0.18944791]